bitfinex/quotes_SOLUSD_20251031
["timestamp","ask_amount","ask_price","bid_price","bid_amount"]
[1761895849554,1.99673957,186.3,186.29,6.03769609]
[1761895849752,1.99673957,186.31,186.3,0.67]
[1761895849977,6.01452054,186.31,186.3,0.67]
[1761895850279,6.01452054,186.31,186.29,77.52652378]
[1761895850457,1.99673957,186.31,186.29,77.52652378]
[1761895851061,0.1,186.32,186.29,77.52652378]
[1761895851255,1.99673957,186.31,186.29,77.52652378]
[1761895851574,0.1,186.32,186.31,9.78882769]
[1761895851875,0.1,186.32,186.31,10.45882769]
[1761895853173,0.1,186.32,186.31,77.52622611]
[1761895857575,0.1,186.32,186.31,80.05970552]
[1761895858681,0.1,186.32,186.31,79.52296568]
[1761895861092,0.1,186.32,186.31,77.52622611]
[1761895861466,0.1,186.32,186.31,76.85622611]
[1761895861696,2.77673957,186.32,186.31,67.06739842]
[1761895861867,6.79327531,186.32,186.29,5.36795601]
[1761895862070,1.99673957,186.3,186.29,5.36795601]
[1761895862268,6.01392114,186.3,186.27,5.3683464]
[1761895862565,0.1,186.32,186.27,5.3683464]
[1761895862770,1.99673957,186.3,186.28,0.69]
[1761895862978,1.99673957,186.3,186.27,19.47972397]
[1761895863283,3.11773229,186.3,186.27,19.47972397]
[1761895863990,3.79773229,186.3,186.27,19.47972397]
[1761895864191,3.11773229,186.29,186.27,19.47972397]
[1761895864485,3.89773229,186.32,186.29,5.36797466]
[1761895864789,7.13565235,186.31,186.29,5.36797466]
[1761895864989,3.79773229,186.31,186.29,5.36797466]
[1761895866472,3.11773229,186.31,186.29,5.36797466]
[1761895867388,3.11773229,186.31,186.29,67.06797466]
[1761895867603,3.79773229,186.31,186.29,67.06797466]
[1761895868096,3.11773229,186.31,186.29,67.06797466]
[1761895868280,3.79773229,186.31,186.29,67.06797466]
[1761895869099,3.11773229,186.31,186.29,67.06797466]
[1761895870085,3.79773229,186.31,186.29,67.06797466]
[1761895870393,3.79773229,186.3,186.29,76.85680235]
[1761895870691,4.69836801,186.3,186.29,61.7]
[1761895870895,7.1361003,186.3,186.29,61.7]
[1761895871085,7.1361003,186.3,186.29,67.06797466]
[1761895871278,7.8161003,186.3,186.29,67.06797466]
[1761895871471,7.8161003,186.3,186.29,61.7]
[1761895872572,16.30151911,186.3,186.29,61.7]
[1761895872772,16.30151911,186.3,186.24,9.78882769]
[1761895872773,16.30151911,186.3,186.24,71.48882769]
[1761895872976,3.11773229,186.25,186.24,71.48882769]
[1761895873586,3.11773229,186.25,186.24,67.06936502]
[1761895876178,0.68,186.26,186.24,67.06936502]
[1761895876372,3.11773229,186.25,186.24,67.06936502]
[1761895876684,0.68,186.26,186.24,67.06936502]
[1761895876877,3.11773229,186.25,186.24,67.06936502]
[1761895878402,3.11773229,186.25,186.24,67.78936502]
[1761895879303,3.11773229,186.25,186.24,67.06936502]
[1761895879679,3.82773229,186.25,186.24,67.06936502]
[1761895880722,0.71,186.25,186.24,67.06936502]
[1761895881023,3.11773229,186.25,186.24,67.06936502]
[1761895881980,3.11773229,186.27,186.24,81.21290453]
[1761895882185,3.11773229,186.27,186.25,9.78882769]
[1761895882397,3.11773229,186.27,186.25,10.50882769]
[1761895882587,3.11773229,186.27,186.25,9.78882769]
[1761895883083,3.82773229,186.3,186.27,9.78882769]
[1761895883302,7.1333624,186.29,186.27,9.78882769]
[1761895883580,3.11773229,186.29,186.26,10.50882769]
[1761895884209,3.11773229,186.29,186.27,5.36855102]
[1761895884519,3.82773229,186.29,186.27,5.36855102]
[1761895884686,0.71,186.29,186.27,5.36855102]
[1761895885002,3.82773229,186.29,186.27,5.36855102]
[1761895886287,3.11773229,186.29,186.27,5.36855102]
[1761895886684,3.82773229,186.28,186.27,5.36855102]
[1761895886890,3.82773229,186.28,186.27,76.85737871]
[1761895887311,3.11773229,186.3,186.27,77.57737871]
[1761895888342,3.11773229,186.3,186.28,9.78882769]
[1761895888505,3.11773229,186.31,186.29,5.36797466]
[1761895888698,3.11773229,186.3,186.29,5.36797466]
[1761895890515,3.11773229,186.31,186.29,6.04797466]
[1761895890820,3.11773229,186.31,186.29,5.36797466]
[1761895892215,0.67,186.31,186.29,5.36797466]
[1761895892520,3.11773229,186.3,186.28,9.78882769]
[1761895892723,3.11773229,186.29,186.28,5.3682028]
[1761895893116,3.78773229,186.29,186.28,5.3682028]
[1761895893315,3.78773229,186.29,186.27,61.7]
[1761895893626,3.78773229,186.28,186.25,61.7]
[1761895893823,3.11773229,186.27,186.25,67.06912751]
[1761895894032,3.11773229,186.28,186.25,67.74912751]
[1761895894608,3.11773229,186.28,186.26,0.68]
[1761895895124,3.11773229,186.29,186.27,15.15737871]
[1761895895725,3.11773229,186.29,186.27,15.83737871]
[1761895896026,3.11773229,186.3,186.28,0.68]
[1761895896325,3.11773229,186.3,186.27,28.57875628]
[1761895896508,3.11773229,186.3,186.27,29.25875628]
[1761895897210,3.11773229,186.29,186.27,28.57875628]
[1761895897702,3.11773229,186.28,186.27,28.57875628]
[1761895897904,3.11773229,186.28,186.25,67.06888218]
[1761895898120,0.67,186.27,186.25,67.06911267]
[1761895898313,3.11773229,186.26,186.25,67.06911267]
[1761895898711,3.78773229,186.26,186.25,67.06911267]
[1761895898907,3.78773229,186.26,186.25,61.7]
[1761895899422,3.78773229,186.26,186.24,61.7]
[1761895899628,7.80443368,186.25,186.24,61.7]
[1761895900431,7.80443368,186.25,186.19,71.48882769]
[1761895900619,3.11773229,186.21,186.19,71.48882769]
[1761895901019,3.11773229,186.21,186.19,72.16882769]
[1761895901434,3.11773229,186.21,186.2,5.37051742]
[1761895901708,0.67,186.31,186.24,9.78882769]
[1761895901942,4.01640898,186.3,186.24,71.48882769]
[1761895902232,0.67,186.31,186.24,72.16882769]
[1761895902233,3.11773229,186.27,186.24,72.16882769]
[1761895902733,0.67,186.3,186.25,0.68]
[1761895902734,3.11773229,186.28,186.25,0.68]
[1761895902912,0.67,186.3,186.26,9.78882769]
[1761895903231,4.01606325,186.29,186.25,9.78882769]
[1761895903432,3.11773229,186.28,186.25,9.78882769]
[1761895903621,3.11773229,186.28,186.26,5.36883925]
[1761895903821,3.78773229,186.28,186.26,5.36883925]
[1761895904333,0.67,186.27,186.26,5.36883925]
[1761895904510,3.78773229,186.27,186.26,5.36883925]
[1761895905340,3.78773229,186.27,186.26,76.85766694]
[1761895906806,0.67,186.27,186.26,76.85766694]
[1761895908544,0.67,186.27,186.26,67.06883925]
[1761895909229,3.11773229,186.28,186.26,67.06883925]
[1761895909409,3.78773229,186.28,186.26,67.06883925]
[1761895909614,3.78773229,186.27,186.26,67.06883925]
[1761895909929,7.80953594,186.27,186.26,67.06883925]
[1761895910642,7.80953594,186.27,186.26,61.7]
[1761895910942,7.13953594,186.27,186.26,67.06883925]
[1761895911117,3.11773229,186.28,186.26,67.06883925]
[1761895911513,3.78773229,186.28,186.26,67.06883925]
[1761895911920,0.67,186.28,186.26,67.06883925]
[1761895912140,3.78773229,186.28,186.26,67.06883925]
[1761895915448,7.14033287,186.27,186.26,67.06883925]
[1761895915915,4.02260058,186.27,186.26,67.06883925]
[1761895916124,0.1,186.32,186.27,9.78882769]
[1761895916429,3.11773229,186.29,186.27,9.78882769]
[1761895916827,3.78773229,186.31,186.27,10.46882769]
[1761895917154,3.88773229,186.32,186.28,19.4689199]
[1761895917368,0.1,186.32,186.29,9.78882769]
[1761895917531,0.1,186.32,186.29,10.46882769]
[1761895917856,0.1,186.32,186.3,0.68]
[1761895918156,0.1,186.32,186.31,9.78882769]
[1761895919259,0.1,186.32,186.31,15.15622611]
[1761895922542,3.87773229,186.32,186.28,61.7]
[1761895922857,3.11773229,186.29,186.28,61.7]
[1761895923458,1.99567964,186.29,186.28,61.7]
[1761895923829,0.66,186.3,186.28,67.06821502]
[1761895924158,1.99567964,186.3,186.28,67.06821502]
[1761895924455,1.99567964,186.3,186.28,67.78821502]
[1761895924760,0.1,186.32,186.29,10.50882769]
[1761895925145,0.1,186.32,186.3,0.72]
[1761895925960,0.1,186.32,186.3,62.42]
[1761895926360,0.1,186.32,186.31,15.87622611]
[1761895928346,0.1,186.32,186.31,79.57190575]
[1761895928864,0.1,186.32,186.31,85.58561662]
[1761895929368,0.1,186.32,186.31,79.57190575]
[1761895931254,0.1,186.32,186.31,76.85622611]
[1761895931552,2.75567964,186.32,186.25,13.42216402]
[1761895931743,1.99567964,186.29,186.27,9.78882769]
[1761895931946,0.66,186.31,186.27,9.78882769]
[1761895932251,1.99567964,186.29,186.27,9.78882769]
[1761895932842,0.1,186.32,186.26,18.79093739]
[1761895932843,2.65567964,186.28,186.26,5.36883925]
[1761895933044,1.99567964,186.27,186.24,15.15824349]
[1761895933251,2.65567964,186.27,186.24,15.15824349]
[1761895933644,1.99567964,186.27,186.24,15.15824349]
[1761895933839,2.65567964,186.27,186.24,15.15824349]
[1761895935969,0.66,186.27,186.24,15.15824349]
[1761895936148,2.65567964,186.27,186.24,15.15824349]
[1761895938572,0.1,186.32,186.24,29.281783]
[1761895938762,2.67567964,186.29,186.24,90.281783]
[1761895939368,0.68,186.28,186.24,90.981783]
[1761895939867,0.68,186.31,186.26,9.78882769]
[1761895940074,6.0105465,186.3,186.26,9.78882769]
[1761895940244,1.99567964,186.29,186.25,9.78882769]
[1761895940444,1.99567964,186.29,186.26,0.7]
[1761895940667,2.67567964,186.29,186.25,9.78882769]
[1761895940971,1.99567964,186.26,186.24,80.49295531]
[1761895942048,0.68,186.25,186.24,67.0694158]
[1761895942248,1.99567964,186.25,186.24,67.0694158]
[1761895942755,0.68,186.27,186.24,67.0694158]
[1761895942961,1.99567964,186.26,186.24,67.0694158]
[1761895943363,2.67567964,186.26,186.24,67.0694158]
[1761895944171,1.99567964,186.27,186.24,67.7694158]
[1761895944365,1.99567964,186.27,186.24,67.0694158]
[1761895944571,1.99567964,186.27,186.25,0.7]
[1761895944775,1.99567964,186.27,186.24,81.19295531]
[1761895945072,0.68,186.26,186.24,67.0694158]
[1761895947678,1.99567964,186.27,186.24,67.0694158]
[1761895947886,2.67567964,186.27,186.24,67.0694158]
[1761895951881,0.68,186.27,186.24,67.0694158]
[1761895952452,2.67567964,186.27,186.24,67.0694158]
[1761895952658,1.99567964,186.26,186.24,67.0694158]
[1761895953583,0.68,186.27,186.24,67.0694158]
[1761895953783,2.67567964,186.27,186.24,67.0694158]
[1761895954475,0.68,186.27,186.24,67.7794158]
[1761895954676,2.67567964,186.27,186.24,67.0694158]
[1761895954881,0.68,186.27,186.24,67.0694158]
[1761895955469,1.99567964,186.28,186.24,67.0694158]
[1761895955676,2.70567964,186.28,186.25,0.71]
[1761895955988,0.71,186.31,186.25,0.71]
[1761895956172,1.99567964,186.29,186.25,0.71]
[1761895956376,1.99567964,186.3,186.25,0.71]
[1761895956570,4.01403102,186.29,186.25,0.71]
[1761895957090,4.01403102,186.29,186.26,5.36883925]
[1761895957771,2.70567964,186.28,186.26,5.36883925]
[1761895958182,20.592,186.29,186.26,6.07883925]
[1761895958380,1.99567964,186.28,186.26,6.07883925]
[1761895958892,1.99567964,186.28,186.26,5.36883925]
[1761895959392,1.99567964,186.28,186.25,0.71]
[1761895960380,1.99567964,186.28,186.25,6.07900729]
[1761895960896,6.07742908,186.31,186.26,6.07859688]
[1761895961073,1.99567964,186.28,186.26,67.77859688]
[1761895961381,0.1,186.32,186.28,9.78882769]
[1761895961565,4.11329105,186.32,186.28,11.78450733]
[1761895961765,0.1,186.32,186.3,11.78450733]
[1761895961966,0.1,186.32,186.31,12.49450733]
[1761895962189,0.1,186.32,186.31,74.19450733]
[1761895962812,0.1,186.32,186.31,17.86190575]
[1761895963111,0.1,186.32,186.31,15.86622611]
[1761895963315,0.1,186.32,186.3,5.36765884]
[1761895963493,2.09567964,186.32,186.29,6.07794236]
[1761895963883,2.09567964,186.32,186.27,11.78450733]
[1761895963884,2.09567964,186.32,186.27,15.15712665]
[1761895964088,2.09567964,186.32,186.29,9.78882769]
[1761895964510,2.09567964,186.32,186.29,0.71]
[1761895965284,2.09567964,186.32,186.3,5.36768652]
[1761895965486,0.1,186.32,186.3,5.36768652]
[1761895965710,2.09567964,186.32,186.3,5.36768652]
[1761895966414,2.09567964,186.32,186.29,5.36797466]
[1761895966593,2.70567964,186.31,186.27,5.36846752]
[1761895966791,1.99567964,186.3,186.28,9.78882769]
[1761895967008,2.70567964,186.3,186.27,5.36846752]
[1761895967211,1.99567964,186.28,186.26,5.36880852]
[1761895967391,0.71,186.29,186.26,5.36880852]
[1761895967704,2.70567964,186.28,186.26,5.36880852]
[1761895968214,0.71,186.28,186.26,5.36880852]
[1761895969593,2.70567964,186.3,186.26,5.36880852]
[1761895969809,0.71,186.29,186.26,5.36880852]
[1761895970899,2.70567964,186.29,186.26,5.36880852]
[1761895971305,0.71,186.28,186.26,5.36880852]
[1761895973016,0.71,186.28,186.26,67.06880852]
[1761895974117,2.70567964,186.28,186.26,67.06880852]
[1761895975108,0.71,186.28,186.26,67.06880852]
[1761895975410,1.99567964,186.29,186.26,67.06880852]
[1761895975615,2.70567964,186.29,186.26,67.06880852]
[1761895976407,0.71,186.28,186.26,67.06880852]
[1761895977323,2.80567964,186.32,186.28,5.36826283]
[1761895977508,6.72478901,186.31,186.28,5.36826283]
[1761895977713,1.99567964,186.3,186.28,5.36826283]
[1761895978707,2.70567964,186.31,186.28,5.36826283]
[1761895979414,23.29767964,186.31,186.27,15.15737871]
[1761895980431,2.70567964,186.31,186.27,15.15737871]
[1761895980738,0.1,186.32,186.29,9.78882769]
[1761895980901,4.11828073,186.32,186.29,9.78882769]
[1761895981325,4.11828073,186.32,186.3,0.67]
[1761895981521,0.1,186.32,186.3,62.37]
[1761895982020,0.1,186.32,186.31,10.45882769]
[1761895982722,0.1,186.32,186.31,15.15622611]
[1761895984422,2.79567964,186.32,186.3,61.7]
[1761895984623,20.592,186.29,186.24,61.7]
[1761895984828,1.99567964,186.28,186.24,67.73939972]
[1761895985015,2.69567964,186.28,186.24,67.06939972]
[1761895985328,0.7,186.28,186.24,67.06939972]
[1761895985513,3.11905577,186.27,186.24,67.06939972]
[1761895985699,3.81905577,186.27,186.24,67.06939972]
[1761895986021,3.81905577,186.27,186.24,61.7]
[1761895986226,3.81905577,186.26,186.24,61.7]
[1761895986402,3.11905577,186.25,186.24,61.7]
[1761895986804,3.81905577,186.26,186.24,61.7]
[1761895987204,0.7,186.26,186.24,61.7]
[1761895987529,3.81905577,186.25,186.24,61.7]
[1761895988030,0.7,186.27,186.24,61.7]
[1761895988236,3.11905577,186.26,186.24,61.7]
[1761895989226,3.81905577,186.26,186.24,61.7]
[1761895989523,3.81905577,186.26,186.24,67.06933474]
[1761895989716,0.7,186.26,186.24,67.06933474]
[1761895990228,3.81905577,186.27,186.24,67.06933474]
[1761895990712,0.7,186.27,186.24,67.06933474]
[1761895990920,3.11905577,186.27,186.24,67.73933474]
[1761895991528,3.81905577,186.27,186.24,67.06933474]
[1761895992631,3.81905577,186.27,186.24,61.7]
[1761895993329,3.81905577,186.25,186.24,61.7]
[1761895993833,3.11905577,186.25,186.24,61.7]
[1761895994543,3.81905577,186.25,186.24,61.7]
[1761895996148,3.11905577,186.25,186.24,61.7]
[1761895996833,0.7,186.26,186.24,61.7]
[1761895997013,3.11905577,186.25,186.24,61.7]
[1761895997218,0.7,186.26,186.24,61.7]
[1761895997541,3.11905577,186.25,186.24,61.7]
[1761895998425,3.11905577,186.25,186.24,67.0694158]
[1761895998620,3.11905577,186.26,186.24,67.0694158]
[1761895999738,3.83905577,186.26,186.24,67.0694158]
[1761896000039,3.83905577,186.26,186.24,61.7]
[1761896000242,3.11905577,186.25,186.24,61.7]
[1761896000616,0.72,186.26,186.24,61.7]
[1761896000924,3.11905577,186.25,186.24,61.7]
[1761896001130,3.11905577,186.25,186.24,67.0694158]
[1761896001925,3.83905577,186.26,186.24,67.0694158]
[1761896002428,0.72,186.26,186.24,67.0694158]
[1761896002738,3.83905577,186.26,186.24,67.0694158]
[1761896003431,3.11905577,186.25,186.24,67.0694158]
[1761896004940,3.11905577,186.26,186.24,67.0694158]
[1761896005428,3.83905577,186.26,186.24,67.0694158]
[1761896005837,0.72,186.28,186.24,67.0694158]
[1761896006040,3.11905577,186.27,186.24,67.0694158]
[1761896006547,3.11905577,186.27,186.23,0.67]
[1761896006548,23.71105577,186.25,186.23,61.7]
[1761896006738,0.72,186.26,186.18,61.7]
[1761896006739,27.7299368,186.24,186.18,61.7]
[1761896007043,3.11905577,186.2,186.18,61.7]
[1761896007838,3.83905577,186.2,186.18,61.7]
[1761896008021,0.72,186.2,186.18,61.7]
[1761896008220,3.11905577,186.2,186.18,61.7]
[1761896008438,7.85692001,186.19,186.16,61.7]
[1761896008641,3.11905577,186.17,186.16,61.7]
[1761896008919,4.01786424,186.17,186.16,61.7]
[1761896009123,4.01786424,186.17,186.16,71.48882769]
[1761896009420,0.71,186.2,186.16,71.48882769]
[1761896009637,4.01638453,186.19,186.16,71.48882769]
[1761896009949,4.01638453,186.18,186.16,71.48882769]
[1761896010136,3.82905577,186.2,186.16,76.86055093]
[1761896010449,4.01454646,186.19,186.16,77.54055093]
[1761896010639,4.01454646,186.18,186.16,77.54055093]
[1761896010834,3.82905577,186.2,186.16,77.54055093]
[1761896011152,4.01446813,186.19,186.16,77.54055093]
[1761896011449,3.82905577,186.2,186.16,77.54055093]
[1761896011640,4.0131061,186.19,186.16,77.54055093]
[1761896011941,3.82905577,186.2,186.16,77.54055093]
[1761896012155,4.01310534,186.19,186.16,77.54055093]
[1761896012328,3.82905577,186.2,186.16,77.54055093]
[1761896012528,4.01169262,186.19,186.16,77.54055093]
[1761896012747,3.82905577,186.2,186.16,77.54055093]
[1761896013045,4.01169262,186.19,186.16,77.54055093]
[1761896013250,3.82905577,186.2,186.16,76.86055093]
[1761896013445,4.01034608,186.19,186.18,5.3711462]
[1761896014043,4.01034608,186.19,186.18,67.0711462]
[1761896015345,3.11905577,186.2,186.18,67.0711462]
[1761896015643,3.82905577,186.2,186.18,67.0711462]
[1761896016143,0.71,186.22,186.18,67.0711462]
[1761896016335,7.12631563,186.21,186.18,67.7511462]
[1761896016536,4.00725986,186.2,186.18,67.7511462]
[1761896016746,3.82905577,186.21,186.18,67.0711462]
[1761896017046,4.00725886,186.2,186.18,67.0711462]
[1761896017255,3.82905577,186.21,186.18,67.0711462]
[1761896017435,4.00649121,186.2,186.18,67.0711462]
[1761896017629,3.82905577,186.21,186.18,67.0711462]
[1761896017826,4.00649121,186.2,186.18,67.0711462]
[1761896018051,3.82905577,186.21,186.18,67.0711462]
[1761896019026,0.71,186.21,186.18,67.0711462]
[1761896019227,3.82905577,186.21,186.18,67.0711462]
[1761896020042,0.71,186.3,186.2,3.11905577]
[1761896020363,4.00525826,186.29,186.22,9.78882769]
[1761896020526,4.00525826,186.29,186.19,16.42333381]
[1761896020527,3.11905577,186.27,186.23,0.68]
[1761896020727,4.00525826,186.28,186.19,62.23708577]
[1761896020728,3.11905577,186.24,186.21,15.15902416]
[1761896021227,0.71,186.23,186.21,15.15902416]
[1761896021435,3.82905577,186.24,186.21,15.15902416]
[1761896021759,0.71,186.24,186.21,15.15902416]
[1761896022050,4.71521101,186.24,186.21,15.15902416]
[1761896022635,3.82905577,186.23,186.19,5.37060403]
[1761896022834,4.00521101,186.22,186.19,10.46882769]
[1761896023040,3.11905577,186.24,186.2,0.68]
[1761896023244,4.00584934,186.23,186.2,0.68]
[1761896023456,3.82905577,186.24,186.2,0.68]
[1761896023754,4.0060819,186.23,186.2,0.68]
[1761896023961,3.82905577,186.24,186.2,0.68]
[1761896024251,4.00608232,186.23,186.2,0.68]
[1761896024454,4.00608232,186.22,186.21,5.37028086]
[1761896024754,4.00608232,186.23,186.21,5.37028086]
[1761896025054,4.00608232,186.22,186.21,5.37028086]
[1761896025232,3.82905577,186.22,186.2,5.37055142]
[1761896025432,0.71,186.21,186.19,15.15963796]
[1761896025935,7.83581792,186.21,186.19,5.37081027]
[1761896026134,3.82905577,186.21,186.19,5.37081027]
[1761896026340,3.82905577,186.21,186.18,5.3711462]
[1761896027544,3.11905577,186.22,186.18,6.0511462]
[1761896027737,4.00846013,186.21,186.18,6.0511462]
[1761896027944,3.82905577,186.22,186.18,6.0511462]
[1761896028138,4.00846013,186.21,186.18,6.0511462]
[1761896028337,3.82905577,186.22,186.18,6.0511462]
[1761896028852,4.00946306,186.21,186.18,6.0511462]
[1761896029046,3.82905577,186.22,186.18,6.0511462]
[1761896029242,4.00946238,186.21,186.18,6.0511462]
[1761896029446,3.82905577,186.22,186.18,6.0511462]
[1761896029647,4.01085545,186.21,186.18,6.0511462]
[1761896029839,3.82905577,186.22,186.18,6.0511462]
[1761896030155,4.01085503,186.21,186.18,6.0511462]
[1761896030374,3.82905577,186.22,186.18,6.0511462]
[1761896030550,4.01112722,186.21,186.18,6.0511462]
[1761896030730,3.82905577,186.22,186.18,6.0511462]
[1761896030934,4.01112722,186.21,186.18,6.0511462]
[1761896031131,3.82905577,186.22,186.18,6.0511462]
[1761896031335,4.01129802,186.21,186.18,67.7511462]
[1761896031548,3.82905577,186.22,186.18,67.7511462]
[1761896031737,4.01129834,186.21,186.18,67.7511462]
[1761896032076,3.82905577,186.22,186.18,67.7511462]
[1761896032272,4.01129875,186.21,186.18,67.7511462]
[1761896032560,3.82905577,186.22,186.18,67.7511462]
[1761896032769,4.0114652,186.21,186.18,67.7511462]
[1761896032948,3.82905577,186.22,186.18,67.7511462]
[1761896033150,4.72146562,186.21,186.18,67.7511462]
[1761896033449,3.82905577,186.21,186.18,67.7511462]
[1761896033853,3.11905577,186.19,186.18,61.7]
[1761896034055,7.13094111,186.19,186.16,61.7]
[1761896034361,3.11905577,186.21,186.16,61.7]
[1761896034362,3.11905577,186.17,186.16,61.7]
[1761896034553,7.13094111,186.17,186.16,61.7]
[1761896034744,7.84094111,186.17,186.16,61.7]
[1761896038249,7.13094111,186.17,186.16,61.7]
[1761896038768,7.13094111,186.17,186.16,67.07172324]
[1761896039266,4.01188534,186.17,186.16,67.07172324]
[1761896040766,4.01188534,186.17,186.16,77.57055093]
[1761896040944,3.11905577,186.2,186.16,77.57055093]
[1761896041146,4.01115894,186.19,186.17,0.71]
[1761896041344,4.01115894,186.18,186.17,0.71]
[1761896041569,4.01115894,186.18,186.16,90.28985905]
[1761896041772,3.11905577,186.2,186.17,0.71]
[1761896042074,20.592,186.21,186.17,0.71]
[1761896042075,4.01154782,186.19,186.17,0.71]
[1761896042253,23.71105577,186.21,186.17,0.71]
[1761896042463,4.01193723,186.2,186.17,0.71]
[1761896042772,4.01193723,186.19,186.17,0.71]
[1761896042969,23.71105577,186.21,186.17,0.71]
[1761896043173,4.01193723,186.2,186.18,5.3711462]
[1761896043363,4.01193723,186.19,186.18,15.15997389]
[1761896043544,20.592,186.23,186.18,81.2090117]
[1761896043744,4.01217586,186.22,186.19,0.71]
[1761896043941,4.01217586,186.21,186.19,0.71]
[1761896044262,3.61096324,186.29,186.2,12.90788346]
[1761896044263,3.82905577,186.28,186.2,12.90788346]
[1761896044452,4.01222478,186.27,186.24,12.90788346]
[1761896044659,4.01222478,186.26,186.25,0.71]
[1761896045165,4.01222478,186.26,186.25,6.07912751]
[1761896048059,4.01222478,186.26,186.25,5.36912751]
[1761896048260,4.01222478,186.26,186.25,6.07912751]
[1761896049652,4.01222478,186.26,186.25,5.36912751]
[1761896050275,4.01222478,186.26,186.24,11.78459491]
[1761896050276,4.01222478,186.26,186.24,15.15822868]
[1761896050479,2.70576722,186.29,186.24,15.15822868]
[1761896050480,4.01222478,186.25,186.24,15.86822868]
[1761896051179,4.01336199,186.25,186.24,15.86822868]
[1761896052377,2.70576722,186.29,186.24,29.29176819]
[1761896052578,4.7227061,186.28,186.24,29.29176819]
[1761896052766,4.0127061,186.27,186.24,28.58176819]
[1761896053077,4.0127061,186.26,186.25,10.49882769]
[1761896053465,4.0127061,186.26,186.25,15.8679552]
[1761896053659,4.0127061,186.26,186.25,15.1579552]
[1761896054480,4.0127061,186.26,186.25,15.8679552]
[1761896054860,4.0127061,186.26,186.25,77.5679552]
[1761896059457,4.0127061,186.26,186.25,76.8579552]
[1761896060075,6.66847332,186.26,186.25,61.7]
[1761896060656,6.66847332,186.26,186.22,61.7]
[1761896060858,1.99576722,186.24,186.22,61.7]
[1761896061057,4.0127061,186.23,186.22,61.7]
[1761896061264,4.6727061,186.23,186.22,67.06999248]
[1761896061477,1.99576722,186.25,186.22,67.06999248]
[1761896061674,4.01107819,186.24,186.22,67.06999248]
[1761896061881,4.01107819,186.23,186.22,67.06999248]
[1761896062062,1.99576722,186.28,186.23,10.46882769]
[1761896062261,4.0111116,186.27,186.23,74.16459491]
[1761896062468,4.0111116,186.26,186.24,0.68]
[1761896062690,4.0111116,186.25,186.24,0.68]
[1761896063486,23.24776722,186.29,186.24,10.46882769]
[1761896063707,4.67029744,186.28,186.25,5.36912751]
[1761896063860,22.58776722,186.29,186.25,6.04912751]
[1761896063861,4.01029744,186.27,186.25,6.04912751]
[1761896064068,1.99576722,186.3,186.26,0.68]
[1761896064286,4.00975327,186.29,186.26,0.68]
[1761896064466,4.00975327,186.28,186.26,0.68]
[1761896064786,2.65576722,186.29,186.25,5.36912751]
[1761896065082,6.00540793,186.28,186.25,5.36912751]
[1761896065281,6.00540793,186.27,186.25,5.36912751]
[1761896065459,1.99576722,186.27,186.25,5.36912751]
[1761896065659,0.66,186.26,186.25,5.36912751]
[1761896066179,0.66,186.26,186.24,5.36935712]
[1761896066566,0.66,186.26,186.24,67.06935712]
[1761896067788,2.65576722,186.26,186.24,61.7]
[1761896068090,2.65576722,186.26,186.24,67.06936137]
[1761896068591,6.66478296,186.25,186.24,61.7]
[1761896068888,6.66478338,186.25,186.24,61.7]
[1761896069476,4.66901616,186.25,186.24,67.0694158]
[1761896069676,0.66,186.25,186.24,67.0694158]
[1761896070472,1.99576722,186.26,186.24,67.0694158]
[1761896070688,2.70576722,186.26,186.24,67.0694158]
[1761896070889,20.592,186.27,186.24,67.0694158]
[1761896071102,20.592,186.27,186.24,67.7294158]
[1761896071588,2.70576722,186.28,186.24,67.7294158]
[1761896071765,4.00855317,186.27,186.24,67.7294158]
[1761896071966,2.70576722,186.28,186.24,67.7294158]
[1761896072168,4.71855315,186.27,186.24,67.7294158]
[1761896072373,2.70576722,186.27,186.24,67.0694158]
[1761896072574,4.71854029,186.26,186.24,67.0694158]
[1761896072777,0.71,186.29,186.24,67.0694158]
[1761896072992,1.99576722,186.27,186.24,67.0694158]
[1761896073188,4.00860893,186.26,186.24,67.0694158]
[1761896073401,0.71,186.26,186.24,67.0694158]
[1761896075389,1.99576722,186.28,186.24,67.0694158]
[1761896075696,6.71437832,186.27,186.24,67.0694158]
[1761896075989,0.71,186.27,186.24,67.0694158]
[1761896076196,0.71,186.27,186.24,67.7294158]
[1761896076197,1.99576722,186.27,186.24,67.7294158]
[1761896076498,2.70576722,186.27,186.24,67.0694158]
[1761896076790,0.71,186.27,186.24,67.0694158]